bitfinex/quotes_SOLUSD_20250915
["timestamp","ask_amount","ask_price","bid_price","bid_amount"]
[1757932471148,0.03,235.83,235.82,50.87254155]
[1757932471862,0.03,235.83,235.82,46.63201912]
[1757932472040,0.03,235.83,235.82,12.89201912]
[1757932472360,0.03,235.83,235.82,33.7]
[1757932473059,0.03,235.83,235.82,0.72]
[1757932473361,0.03,235.83,235.82,34.42]
[1757932474757,0.03,235.83,235.82,47.41378148]
[1757932475363,0.03,235.83,235.82,47.39378148]
[1757932476259,0.03,235.83,235.82,47.37378148]
[1757932476446,0.73,235.83,235.82,46.65378148]
[1757932478656,4.97034261,235.83,235.82,46.65378148]
[1757932478853,4.97034261,235.83,235.82,12.99378148]
[1757932479047,4.97034261,235.83,235.82,33.64]
[1757932479244,4.97034261,235.83,235.76,0.14216157]
[1757932479447,4.97034261,235.83,235.75,0.72]
[1757932479448,2.59957428,235.82,235.75,0.72]
[1757932479654,3.29957428,235.81,235.72,0.72]
[1757932479948,3.29957428,235.81,235.73,33.64]
[1757932480142,15.57119915,235.83,235.76,26.0]
[1757932480350,18.17077343,235.83,235.77,33.64]
[1757932480549,2.59957428,235.82,235.77,33.64]
[1757932480748,0.7,235.81,235.77,33.64]
[1757932480956,0.7,235.8,235.78,33.62]
[1757932481352,0.7,235.8,235.75,26.72]
[1757932481561,0.7,235.79,235.75,26.0]
[1757932481868,2.59957428,235.81,235.76,33.62]
[1757932482245,3.29957428,235.82,235.77,0.72]
[1757932482445,4.24070226,235.81,235.78,33.6]
[1757932482658,4.94070226,235.81,235.78,33.6]
[1757932483248,0.03,235.83,235.8,26.0]
[1757932483469,0.03,235.83,235.78,33.6]
[1757932483470,0.03,235.83,235.81,0.72]
[1757932483668,0.03,235.83,235.82,33.68]
[1757932485871,0.73,235.83,235.82,33.64]
[1757932486183,0.03,235.83,235.82,33.64]
[1757932487174,0.73,235.83,235.78,0.14216157]
[1757932487382,0.73,235.83,235.79,33.64]
[1757932487972,0.03,235.83,235.79,33.64]
[1757932488177,0.03,235.83,235.79,34.36]
[1757932488500,0.03,235.83,235.79,33.64]
[1757932488695,0.03,235.83,235.8,0.86216157]
[1757932489991,0.03,235.83,235.81,0.66]
[1757932490192,0.03,235.83,235.82,33.62]
[1757932491785,0.03,235.83,235.82,34.28]
[1757932494386,0.03,235.83,235.82,0.66]
[1757932494798,0.74,235.83,235.8,26.0]
[1757932495004,0.74,235.83,235.81,33.54]
[1757932495005,0.03,235.83,235.81,33.54]
[1757932495306,0.74,235.83,235.81,33.54]
[1757932495678,0.03,235.83,235.79,26.0]
[1757932495883,0.03,235.83,235.8,33.54]
[1757932496297,0.03,235.83,235.8,34.2]
[1757932496507,0.03,235.83,235.81,0.66]
[1757932496685,0.03,235.83,235.82,26.0]
[1757932496893,0.03,235.83,235.82,26.66]
[1757932498109,0.03,235.83,235.82,34.2]
[1757932499785,0.03,235.83,235.82,0.66]
[1757932500006,0.03,235.83,235.82,33.52]
[1757932500410,0.03,235.83,235.8,4.90080521]
[1757932500599,0.03,235.83,235.81,33.5]
[1757932500798,0.03,235.83,235.81,34.16]
[1757932501919,0.03,235.83,235.8,0.14216157]
[1757932502086,0.03,235.83,235.81,33.48]
[1757932502482,0.03,235.83,235.82,0.66]
[1757932502786,0.03,235.83,235.81,33.48]
[1757932503011,0.03,235.83,235.81,34.14]
[1757932503826,0.03,235.83,235.82,4.90052243]
[1757932503990,0.03,235.83,235.82,5.042684]
[1757932505911,0.03,235.88,235.85,26.0]
[1757932506219,0.03,235.88,235.86,33.46]
[1757932506425,0.03,235.88,235.86,34.12]
[1757932506719,0.03,235.88,235.87,0.66]
[1757932507317,0.03,235.88,235.87,0.80216157]
[1757932508108,0.03,235.88,235.87,5.04178509]
[1757932508304,0.71,235.96,235.9,26.0]
[1757932508507,1.65813141,235.97,235.91,33.44]
[1757932508705,0.71,235.96,235.9,26.0]
[1757932508913,0.71,235.96,235.91,33.44]
[1757932509319,0.71,235.96,235.9,26.0]
[1757932509622,0.71,235.96,235.91,33.44]
[1757932509802,1.65813141,235.97,235.87,14.83868232]
[1757932509803,6.60631746,235.95,235.88,0.14216157]
[1757932509998,6.60631746,235.95,235.92,26.0]
[1757932510199,0.71,235.94,235.92,26.0]
[1757932510398,5.89631746,235.95,235.88,4.38157956]
[1757932510601,1.65813141,235.92,235.86,0.14216157]
[1757932510807,0.71,235.91,235.9,26.0]
[1757932511217,0.71,235.91,235.9,33.42]
[1757932512623,11.2,236.01,235.94,0.14216157]
[1757932512624,0.71,236.01,235.94,0.14216157]
[1757932512824,0.71,236.01,235.98,26.0]
[1757932513135,0.71,236.0,235.99,33.56]
[1757932513627,0.71,236.0,235.94,0.14216157]
[1757932513807,0.71,236.0,235.98,26.0]
[1757932514010,0.71,236.0,235.87,10.59546514]
[1757932514011,0.71,235.99,235.87,10.59546514]
[1757932514233,1.65813141,235.97,235.86,0.66]
[1757932514401,15.25372542,235.95,235.76,20.0]
[1757932514608,0.71,235.94,235.77,0.66]
[1757932514908,1.65813141,235.9,235.81,4.23663027]
[1757932515110,1.65813141,235.87,235.82,33.6]
[1757932515312,1.65813141,235.87,235.82,60.26]
[1757932515512,1.65813141,235.87,235.82,26.66]
[1757932515832,2.36813141,235.87,235.83,33.6]
[1757932516329,1.65813141,235.87,235.8,0.66]
[1757932516507,1.65813141,235.85,235.81,33.6]
[1757932516827,1.65813141,235.85,235.81,34.26]
[1757932517014,1.65813141,235.89,235.82,0.66]
[1757932517219,0.71,235.88,235.82,0.66]
[1757932517414,2.36813141,235.88,235.82,0.66]
[1757932518133,2.36813141,235.88,235.83,4.24034261]
[1757932518308,0.71,235.87,235.83,4.24034261]
[1757932519424,0.71,235.87,235.82,0.66]
[1757932519747,2.36813141,235.86,235.83,33.58]
[1757932520224,1.65813141,235.87,235.83,33.58]
[1757932520422,2.36813141,235.86,235.83,37.82028306]
[1757932520620,11.23,235.93,235.86,26.0]
[1757932520826,12.88813141,235.93,235.87,34.24]
[1757932522532,1.65813141,235.91,235.87,4.23945214]
[1757932522730,1.65813141,235.88,235.87,33.58]
[1757932522919,2.36813141,235.88,235.83,26.0]
[1757932523235,0.71,235.87,235.85,33.58]
[1757932523408,0.71,235.86,235.85,33.58]
[1757932524203,11.2,235.91,235.85,33.58]
[1757932524432,1.65813141,235.86,235.85,33.58]
[1757932525719,2.36813141,235.86,235.85,33.58]
[1757932525914,2.36813141,235.86,235.8,30.24072006]
[1757932526118,1.65813141,235.82,235.81,33.56]
[1757932526321,1.65813141,235.82,235.73,10.60524615]
[1757932526531,0.71,235.81,235.78,33.56]
[1757932526738,1.65813141,235.79,235.78,33.56]
[1757932529334,1.65813141,235.79,235.78,37.80124183]
[1757932529637,1.65813141,235.8,235.78,37.80124183]
[1757932530442,1.65813141,235.8,235.78,33.56]
[1757932530618,0.71,235.82,235.78,33.56]
[1757932530826,1.65813141,235.8,235.78,33.56]
[1757932531754,1.65813141,235.79,235.78,33.56]
[1757932532862,2.37813141,235.79,235.77,12.57232818]
[1757932533027,14.84073589,235.84,235.77,12.57232818]
[1757932533028,2.37813141,235.78,235.77,33.52]
[1757932533634,1.65813141,235.79,235.77,33.52]
[1757932533830,0.72,235.81,235.77,37.76136603]
[1757932534036,1.65813141,235.82,235.78,0.72]
[1757932534457,8.2,235.83,235.77,37.76136603]
[1757932534649,8.2,235.83,235.8,26.0]
[1757932534958,8.2,235.88,235.81,34.24]
[1757932535156,8.2,235.88,235.82,0.72]
[1757932535650,8.2,235.88,235.83,4.24034261]
[1757932535846,8.2,235.88,235.84,34.24]
[1757932536233,8.2,235.88,235.85,0.72]
[1757932536740,8.2,235.88,235.84,33.52]
[1757932537756,8.2,235.88,235.85,4.23998304]
[1757932538248,8.92,235.88,235.85,4.23998304]
[1757932538653,8.2,235.88,235.85,4.23998304]
[1757932539860,8.92,235.88,235.85,4.23998304]
[1757932540857,8.92,235.88,235.84,33.52]
[1757932541662,8.92,235.88,235.84,37.76003764]
[1757932542352,8.2,235.87,235.84,37.76003764]
[1757932543052,8.2,235.87,235.84,38.48003764]
[1757932543951,10.57813141,235.87,235.84,33.52]
[1757932544346,9.85813141,235.87,235.84,33.52]
[1757932544864,8.2,235.87,235.84,37.76015185]
[1757932545367,8.2,235.87,235.86,26.0]
[1757932545565,8.2,235.92,235.87,26.0]
[1757932545870,8.2,235.91,235.9,26.0]
[1757932546051,8.2,235.91,235.9,60.12]
[1757932547264,0.03,235.93,235.9,64.35908435]
[1757932547463,0.03,235.93,235.91,0.68]
[1757932548469,0.03,235.93,235.92,4.91872499]
[1757932549273,0.03,235.93,235.92,38.33872499]
[1757932550161,0.03,235.96,235.95,26.0]
[1757932550469,0.03,235.96,235.95,63.63818605]
[1757932550672,0.03,235.96,235.95,64.31818605]
[1757932551464,0.03,235.98,235.95,74.25365119]
[1757932551772,0.03,235.98,235.95,74.93365119]
[1757932552374,0.03,235.98,235.96,33.42]
[1757932552570,0.03,235.98,235.97,4.23782684]
[1757932552965,0.03,235.98,235.96,26.0]
[1757932553165,0.69,235.98,235.97,33.4]
[1757932553363,0.03,235.98,235.97,33.4]
[1757932554371,0.03,235.98,235.97,34.08]
[1757932554566,0.03,235.98,235.97,37.63782684]
[1757932555654,0.03,235.98,235.97,38.31782684]
[1757932558081,8.96,236.07,236.0,26.0]
[1757932558378,1.65813141,236.06,236.01,33.36]
[1757932558577,0.76,236.07,236.01,33.36]
[1757932558776,3.53210546,236.23,236.04,26.0]
[1757932558978,2.31813141,236.13,236.08,26.0]
[1757932559171,0.66,236.12,236.09,33.42]
[1757932559475,0.66,236.12,236.08,26.0]
[1757932559476,1.65813141,236.05,235.99,10.59338965]
[1757932559655,1.65813141,236.05,236.03,26.0]
[1757932559864,2.31813141,236.05,236.04,28.42]
[1757932560065,0.66,236.04,236.02,33.48]
[1757932560377,0.66,236.03,235.98,26.0]
[1757932560551,0.66,236.02,235.99,33.48]
[1757932560757,0.66,236.01,236.0,33.48]
[1757932561158,13.59559401,236.04,236.0,33.48]
[1757932561159,0.66,236.04,236.0,33.48]
[1757932561362,1.65813141,236.05,236.0,33.48]
[1757932561564,0.66,236.04,236.0,37.71715339]
[1757932561779,2.31813141,236.06,236.0,48.97037372]
[1757932561959,0.66,236.05,236.0,48.31037372]
[1757932562158,1.65813141,236.06,236.0,48.31037372]
[1757932562359,2.31813141,236.06,236.0,48.31037372]
[1757932562586,1.65813141,236.05,236.0,48.31037372]
[1757932562778,2.31813141,236.05,236.0,48.31037372]
[1757932563182,2.31813141,236.05,236.0,48.97037372]
[1757932563379,1.65813141,236.05,236.01,0.66]
[1757932563580,2.31813141,236.04,236.02,4.23692907]
[1757932563785,2.31813141,236.03,236.0,26.0]
[1757932564088,1.65813141,236.02,236.01,33.56]
[1757932564867,1.65813141,236.02,236.01,37.79710859]
[1757932565065,1.65813141,236.02,236.01,33.56]
[1757932565487,13.59559401,236.09,236.01,38.45710859]
[1757932565665,1.65813141,236.05,236.01,38.45710859]
[1757932565869,1.65813141,236.05,236.02,0.66]
[1757932566081,1.65813141,236.04,236.03,33.54]
[1757932566281,0.66,236.07,236.03,33.54]
[1757932566488,0.66,236.06,236.03,33.54]
[1757932566681,0.66,236.05,236.03,33.54]
[1757932566877,0.66,236.04,236.03,33.54]
[1757932567083,13.59559401,236.09,236.03,33.54]
[1757932567383,0.66,236.06,236.03,33.54]
[1757932567589,0.66,236.05,236.03,33.54]
[1757932567791,17.83135001,236.09,236.03,33.54]
[1757932567792,2.31813141,236.04,236.03,33.54]
[1757932567976,2.31813141,236.04,236.02,33.5]
[1757932568175,2.31813141,236.03,235.95,4.23801006]
[1757932568493,1.65813141,235.97,235.96,33.52]
[1757932568904,11.52920699,236.04,235.97,4.23782684]
[1757932569106,4.89668135,236.04,235.97,4.23782684]
[1757932569279,0.66,236.04,235.97,4.89782684]
[1757932569473,1.65813141,236.0,235.97,4.89782684]
[1757932569673,1.65813141,236.0,235.98,0.66]
[1757932569890,2.58932691,236.0,235.99,33.52]
[1757932570872,2.58932691,236.0,235.99,37.75746768]
[1757932572674,0.03,236.07,235.99,64.41746768]
[1757932572675,0.69,236.07,235.99,64.41746768]
[1757932572895,2.58932691,236.05,236.02,26.0]
[1757932573100,2.58932691,236.05,236.03,37.79674956]
[1757932574694,2.58932691,236.04,236.03,37.79674956]
[1757932576282,2.58932691,236.04,236.03,33.56]
[1757932576498,2.58932691,236.04,236.03,37.79674956]
[1757932576691,2.58932691,236.04,236.03,33.56]
[1757932576891,2.58932691,236.04,236.03,37.79674956]
[1757932580000,0.03,236.07,236.03,38.45674956]
[1757932580191,2.58932691,236.04,236.03,33.56]
[1757932580394,2.58932691,236.04,236.03,37.79674956]
[1757932580793,0.03,236.07,236.03,37.79674956]
[1757932580988,2.58932691,236.05,236.03,38.45674956]
[1757932581793,2.58932691,236.05,236.03,37.79674956]
[1757932582934,0.03,236.07,236.06,26.0]
[1757932583089,0.03,236.07,236.06,26.14216157]
[1757932583289,0.03,236.07,236.06,60.38216157]
[1757932583488,0.03,236.07,236.06,26.80216157]
[1757932583690,0.03,236.1,236.06,26.80216157]
[1757932583913,0.03,236.1,236.09,26.0]
[1757932584210,0.03,236.1,236.09,59.72216157]
[1757932584402,0.03,236.1,236.09,60.38216157]
[1757932584720,0.03,236.1,236.09,0.66]
[1757932584922,3.27932691,236.1,236.03,11.25187391]
[1757932585128,3.27932691,236.1,236.04,37.87657007]
[1757932585406,3.24932691,236.09,236.05,33.66]
[1757932586002,0.03,236.1,236.09,0.14216157]
[1757932586509,0.03,236.1,236.09,34.52216157]
[1757932586884,0.03,236.1,236.09,38.7578344]
[1757932587807,0.66,236.24,236.13,0.14216157]
[1757932588009,8.2,236.23,236.15,0.14216157]
[1757932588211,8.86,236.23,236.16,59.72]
[1757932588715,8.2,236.23,236.17,0.66]
[1757932589015,8.2,236.23,236.19,4.2338795]
[1757932589199,8.86,236.23,236.2,33.72]
[1757932589394,8.86,236.23,236.19,4.2338795]
[1757932589601,8.86,236.23,236.21,33.7]
[1757932589811,8.2,236.23,236.21,33.7]
[1757932590905,8.2,236.23,236.18,0.66]
[1757932590906,8.2,236.23,236.16,26.0]
[1757932591109,11.44932691,236.22,236.17,33.68]
[1757932591314,0.66,236.21,236.17,33.68]
[1757932591717,0.72,236.2,236.18,33.72]
[1757932592420,2.58932691,236.21,236.18,33.72]
[1757932592922,17.82965277,236.18,236.08,0.68]
[1757932593102,2.58932691,236.12,236.09,33.72]
[1757932593295,3.30932691,236.12,236.1,33.06]
[1757932593509,2.58932691,236.11,236.06,0.68]
[1757932593828,2.58932691,236.08,236.05,0.14216157]
[1757932594118,2.58932691,236.08,236.06,33.74]
[1757932594325,2.58932691,236.08,236.06,59.74]
[1757932594903,2.58932691,236.08,236.07,4.23603168]
[1757932595816,0.72,236.1,236.07,4.23603168]
[1757932596021,2.58932691,236.08,236.06,33.74]
[1757932596202,2.58932691,236.07,236.06,37.97612055]
[1757932597024,3.30932691,236.07,236.04,30.23642465]
[1757932597217,24.18277215,236.14,236.04,30.23642465]
[1757932597218,2.58932691,236.05,236.04,26.0]
[1757932597405,2.58932691,236.05,236.04,59.72]
[1757932597605,2.58932691,236.05,236.04,33.72]
[1757932598129,0.72,236.06,236.04,33.72]
[1757932598422,2.58932691,236.05,236.04,33.72]
[1757932599132,2.58932691,236.05,236.04,37.95657007]
[1757932600327,2.58932691,236.05,236.04,33.72]
[1757932600632,7.5457175,236.05,236.04,33.72]
[1757932600825,7.5457175,236.05,236.03,0.06]
[1757932600826,3.30932691,236.05,236.03,0.06]
[1757932601006,3.30932691,236.04,236.03,0.06]
[1757932602608,0.72,236.04,236.03,0.06]
[1757932602823,3.30932691,236.04,236.03,0.06]
[1757932603931,19.49424783,236.04,236.03,0.06]
[1757932604133,3.30932691,236.04,236.03,0.06]
[1757932605541,2.58932691,236.04,236.03,0.06]
[1757932605921,2.58932691,236.04,236.03,4.29674956]
[1757932606314,0.72,236.11,236.03,4.97674956]
[1757932606530,2.58932691,236.08,236.03,4.97674956]
[1757932606740,2.58932691,236.08,236.03,15.56862347]
[1757932607529,0.72,236.1,236.03,15.56862347]
[1757932607742,2.58932691,236.07,236.03,15.56862347]
[1757932608041,0.72,236.1,236.03,15.56862347]
[1757932608240,2.58932691,236.07,236.03,15.56862347]
[1757932609148,2.58932691,236.06,236.03,15.56862347]
[1757932609645,0.72,236.1,236.03,15.56862347]
[1757932610037,2.58932691,236.06,236.03,15.56862347]
[1757932610419,2.58932691,236.07,236.03,15.56862347]
[1757932610722,8.2,236.09,236.06,26.0]
[1757932611054,2.58932691,236.08,236.07,26.0]
[1757932611217,8.2,236.14,236.07,26.0]
[1757932611421,8.9,236.13,236.08,33.64]
[1757932611621,0.7,236.12,236.08,33.64]
[1757932612032,0.7,236.11,236.08,33.64]
[1757932612322,0.7,236.1,236.08,33.64]
[1757932612522,10.78932691,236.09,236.08,33.64]
[1757932612840,0.7,236.1,236.08,33.64]
[1757932613030,2.58932691,236.09,236.08,33.64]
[1757932613231,2.58932691,236.09,236.08,37.87585225]
[1757932613829,0.7,236.1,236.08,37.87585225]
[1757932613830,13.59559401,236.14,236.08,37.87585225]
[1757932614037,2.58932691,236.13,236.08,38.55585225]
[1757932614241,2.58932691,236.13,236.09,0.68]
[1757932614547,132.5,236.15,236.1,0.68]
[1757932614752,2.58932691,236.13,236.11,33.64]
[1757932615347,2.58932691,236.12,236.11,33.64]
[1757932615939,0.7,236.16,236.11,33.64]
[1757932616123,2.58932691,236.12,236.11,33.64]
[1757932616544,3.28932691,236.12,236.08,33.62]
[1757932616845,2.58932691,236.12,236.08,33.62]
[1757932617043,0.7,236.15,236.08,34.3]
[1757932617253,2.58932691,236.12,236.08,34.3]
[1757932617427,2.58932691,236.12,236.09,0.68]
[1757932618446,2.58932691,236.11,236.08,33.62]
[1757932618642,2.58932691,236.1,236.09,4.23567283]
[1757932619146,2.58932691,236.12,236.09,4.91567283]
[1757932621652,0.7,236.15,236.09,4.91567283]
[1757932621948,2.58932691,236.14,236.09,4.90567283]
[1757932622150,2.58932691,236.14,236.1,0.67]
[1757932622352,2.58932691,236.14,236.11,33.58]
[1757932622544,2.58932691,236.14,236.11,34.25]
[1757932622959,0.68,236.16,236.12,4.23513467]
[1757932623161,4.23373178,236.2,236.12,4.23513467]
[1757932623339,2.58932691,236.14,236.12,4.23513467]
[1757932624549,2.58932691,236.13,236.11,37.81530538]
[1757932624754,2.58932691,236.12,236.11,33.58]
[1757932624945,0.68,236.15,236.11,33.58]
[1757932625458,2.58932691,236.12,236.11,33.58]
[1757932626041,2.58932691,236.12,236.11,37.81527538]
[1757932626437,2.58932691,236.12,236.11,26.0]
[1757932626654,3.26932691,236.12,236.1,33.54]
[1757932627034,2.58932691,236.11,236.1,33.54]
[1757932627971,2.58932691,236.11,236.08,4.23569939]
[1757932628259,2.58932691,236.1,236.08,32.64]
[1757932628751,2.58932691,236.09,236.08,32.64]
[1757932628956,2.58932691,236.09,236.07,33.52]
[1757932628957,3.26932691,236.09,236.07,33.52]
[1757932629161,3.26932691,236.08,236.07,33.52]
[1757932629342,3.26932691,236.08,236.03,0.06]
[1757932629547,0.68,236.08,236.04,33.52]
[1757932629856,0.68,236.07,236.04,33.52]
[1757932630036,0.68,236.06,236.04,33.52]
[1757932631046,1.65659523,236.05,236.04,33.52]
[1757932631756,0.68,236.06,236.04,33.52]
[1757932631958,1.65659523,236.05,236.04,33.52]
[1757932632464,0.68,236.05,236.04,33.52]
[1757932632670,2.33659523,236.05,236.04,33.52]
[1757932632853,1.65659523,236.05,236.04,33.52]
[1757932633659,0.68,236.08,236.04,33.52]
[1757932633868,1.65659523,236.06,236.04,37.75652708]
[1757932635064,1.65659523,236.05,236.04,33.52]
[1757932635263,13.59559401,236.11,236.04,33.52]
[1757932635470,1.65659523,236.05,236.04,33.52]
[1757932639061,2.33659523,236.05,236.04,33.52]
[1757932639566,1.65659523,236.05,236.04,33.52]
[1757932640151,0.68,236.08,236.04,33.52]
[1757932640359,1.65659523,236.05,236.04,33.52]
[1757932640566,8.88,236.07,236.04,33.42]
[1757932640874,1.65659523,236.05,236.04,33.42]
[1757932641574,1.65659523,236.05,236.04,37.65657007]
[1757932642447,1.65659523,236.05,236.04,33.42]
[1757932643677,8.2,236.07,236.04,38.32657007]
[1757932643857,8.2,236.07,236.05,0.67]
[1757932644064,15.25218924,236.11,236.06,34.05]
[1757932644767,15.25218924,236.11,236.06,33.38]
[1757932645070,15.25218924,236.11,236.07,4.23603168]
[1757932645268,0.03,236.12,236.08,34.07]
[1757932645573,0.03,236.12,236.09,0.67]
[1757932645762,0.03,236.12,236.1,33.4]
[1757932645967,0.03,236.12,236.1,34.07]
[1757932646580,0.03,236.12,236.11,0.67]
[1757932646957,0.03,236.12,236.11,4.23531404]
[1757932648267,0.03,236.12,236.11,4.90531404]
[1757932649853,0.03,236.12,236.11,5.04747561]
[1757932658856,0.03,236.12,236.11,4.37747561]
[1757932659276,0.03,236.12,236.11,63.79747561]
[1757932659481,0.03,236.12,236.11,30.37747561]
[1757932659773,0.03,236.12,236.11,63.79747561]
[1757932661558,0.03,236.12,236.11,64.46747561]
[1757932663265,0.03,236.12,236.11,63.79747561]
[1757932664269,0.03,236.12,236.11,64.46747561]
[1757932664469,0.03,236.12,236.11,63.61531404]
[1757932665684,0.75,236.12,236.11,63.61531404]
[1757932666274,0.03,236.12,236.11,63.61531404]
[1757932666663,0.03,236.12,236.11,30.23531404]
[1757932666991,0.03,236.12,236.11,63.61531404]
[1757932667168,0.75,236.12,236.11,63.61531404]
[1757932668384,0.03,236.12,236.11,63.61531404]
[1757932668688,0.03,236.12,236.11,63.59531404]
[1757932669573,0.03,236.12,236.11,64.40747561]
[1757932670867,8.86,236.22,236.12,0.14216157]
[1757932671062,8.86,236.22,236.16,26.0]
[1757932671267,8.86,236.22,236.2,26.0]
[1757932671563,8.86,236.22,236.21,33.34]
[1757932672392,8.86,236.22,236.21,37.57352101]
[1757932673668,0.03,236.23,236.21,37.57352101]
[1757932674280,0.03,236.23,236.22,0.14216157]
[1757932674872,0.03,236.23,236.22,0.82216157]
[1757932675181,0.03,236.23,236.22,0.14216157]
[1757932676086,0.03,236.23,236.22,4.37550337]
[1757932676590,0.69,236.23,236.22,4.2333418]
[1757932679288,0.03,236.23,236.22,4.37550337]
[1757932679496,0.69,236.23,236.22,4.2333418]
[1757932679896,2.34659523,236.23,236.22,33.3]
[1757932680185,0.69,236.23,236.22,33.3]
[1757932680878,2.34659523,236.23,236.2,26.0]
[1757932681081,2.34659523,236.23,236.07,0.06]
[1757932681082,1.65659523,236.21,236.11,21.17657024]
[1757932681284,1.65659523,236.18,236.13,14.8221808]
[1757932681478,2.31659523,236.17,236.14,33.3]
[1757932681680,1.65659523,236.17,236.16,26.0]
[1757932681880,1.65659523,236.17,236.16,59.3]
[1757932682177,2.37659523,236.17,236.16,59.3]
[1757932682385,0.72,236.17,236.16,59.3]
[1757932684096,0.72,236.17,236.16,63.53441734]
[1757932684291,1.65659523,236.18,236.16,74.1204607]
[1757932685304,1.65659523,236.19,236.16,74.1204607]
[1757932685494,8.2,236.21,236.17,0.82216157]
[1757932685688,8.2,236.21,236.2,26.0]
[1757932685891,8.2,236.21,236.2,59.28]
[1757932686091,8.2,236.21,236.2,63.51370025]
[1757932686291,0.03,236.23,236.21,0.14216157]
[1757932686602,0.03,236.23,236.22,33.28]
[1757932687416,0.03,236.23,236.22,33.42216157]
[1757932688089,0.03,236.23,236.22,37.65550337]
[1757932692980,0.75,236.23,236.22,63.5133418]
[1757932693382,3.33362705,236.23,236.22,63.5133418]
[1757932694588,2.61362705,236.23,236.22,63.5133418]
[1757932695503,0.03,236.23,236.22,63.5133418]
[1757932698907,0.03,236.23,236.22,64.1933418]
[1757932699100,0.03,236.23,236.22,63.5133418]
[1757932699902,0.03,236.23,236.22,63.65550337]
[1757932700102,0.03,236.23,236.22,64.33550337]
[1757932700287,0.03,236.23,236.22,63.65550337]
[1757932700705,0.03,236.23,236.22,64.33550337]
[1757932703412,0.03,236.23,236.22,63.65550337]
[1757932711602,0.03,236.23,236.22,64.37550337]
[1757932712195,0.03,236.23,236.22,63.65550337]
[1757932712414,0.72,236.3,236.25,26.0]
[1757932712613,11.50362705,236.29,236.26,33.22]
[1757932712807,3.30362705,236.28,236.26,33.22]
[1757932713026,0.72,236.27,236.26,33.22]
[1757932713323,0.72,236.27,236.26,37.45262507]
[1757932713530,0.72,236.27,236.26,48.03418775]
[1757932713909,2.58362705,236.27,236.26,48.03418775]
[1757932714110,8.92,236.29,236.26,48.03418775]
[1757932714415,3.30362705,236.28,236.26,48.03418775]
[1757932714604,0.72,236.28,236.26,48.03418775]
[1757932714801,3.30362705,236.28,236.26,48.03418775]
[1757932716415,3.30362705,236.27,236.26,48.17634932]
[1757932717322,0.72,236.27,236.26,48.17634932]
[1757932717623,2.58362705,236.28,236.26,48.17634932]
[1757932718214,8.92,236.29,236.26,48.17634932]
[1757932718428,2.58362705,236.28,236.26,48.17634932]
[1757932718820,8.92,236.29,236.26,48.17634932]
[1757932719013,2.58362705,236.28,236.26,48.17634932]
[1757932719533,3.30362705,236.28,236.26,48.17634932]
[1757932720111,8.2,236.29,236.27,0.72]
[1757932720311,8.2,236.29,236.28,33.22]
[1757932720712,10.78362705,236.29,236.28,33.22]
[1757932720912,11.50362705,236.29,236.28,33.22]
[1757932722130,11.50362705,236.29,236.28,37.4522668]
[1757932723235,11.50362705,236.29,236.28,4.2322668]
[1757932723430,3.30362705,236.29,236.28,4.2322668]
[1757932724633,0.72,236.29,236.28,4.2322668]